bitfinex/quotes_SOLUSD_20250903
["timestamp","ask_amount","ask_price","bid_price","bid_amount"]
[1756912260393,70.05858572,212.83,212.82,0.03]
[1756912260698,73.29991167,212.83,212.82,0.03]
[1756912262411,73.29991167,212.83,212.79,0.03]
[1756912262412,85.04637598,212.83,212.79,0.03]
[1756912262640,26.0,212.79,212.77,0.03]
[1756912262918,16.20662975,212.76,212.75,0.03]
[1756912263302,16.88662975,212.76,212.75,0.03]
[1756912263718,21.58676135,212.76,212.75,0.03]
[1756912264518,60.24676135,212.76,212.75,0.03]
[1756912265022,21.58676135,212.76,212.75,0.03]
[1756912265227,5.3801316,212.76,212.75,0.03]
[1756912265409,8.62145755,212.76,212.75,0.03]
[1756912265622,47.28145755,212.76,212.75,0.03]
[1756912265820,50.5227835,212.76,212.75,0.03]
[1756912267034,45.8226519,212.76,212.75,0.03]
[1756912267334,50.5227835,212.76,212.75,0.03]
[1756912268828,50.5227835,212.76,212.72,0.03]
[1756912269133,26.0,212.73,212.72,0.03]
[1756912269324,29.24132595,212.73,212.72,0.03]
[1756912269636,70.39352732,212.73,212.72,0.03]
[1756912269933,31.75352732,212.73,212.72,0.03]
[1756912270137,5.07352732,212.73,212.72,0.03]
[1756912270434,69.71352732,212.73,212.72,0.03]
[1756912270609,70.39352732,212.73,212.72,0.03]
[1756912270810,69.71352732,212.73,212.72,0.03]
[1756912271436,70.39352732,212.73,212.72,0.03]
[1756912272014,74.41432175,212.73,212.72,0.03]
[1756912272229,75.13432175,212.73,212.72,0.03]
[1756912272835,31.42079443,212.73,212.72,0.03]
[1756912273013,26.0,212.73,212.72,0.03]
[1756912273221,74.41432175,212.73,212.72,0.03]
[1756912273419,75.13432175,212.73,212.72,0.03]
[1756912274934,49.13432175,212.73,212.72,0.03]
[1756912276133,49.11432175,212.73,212.72,0.03]
[1756912277223,49.11432175,212.73,212.69,0.03]
[1756912277428,31.07352732,212.7,212.69,0.03]
[1756912277622,69.69352732,212.7,212.69,0.03]
[1756912277838,70.41352732,212.7,212.69,0.03]
[1756912278342,75.11498477,212.7,212.69,0.03]
[1756912278724,77.94851357,212.7,212.69,0.03]
[1756912279443,26.0,212.66,212.62,0.03]
[1756912279641,69.69352732,212.66,212.62,0.03]
[1756912279842,70.41352732,212.66,212.62,0.03]
[1756912280418,31.79352732,212.66,212.62,0.03]
[1756912280646,75.09586908,212.66,212.62,0.03]
[1756912281046,30.70234176,212.66,212.62,0.03]
[1756912281225,0.72,212.72,212.65,0.34]
[1756912281419,26.0,212.69,212.65,0.03]
[1756912281641,31.07352732,212.66,212.65,0.03]
[1756912281840,69.67352732,212.66,212.65,0.03]
[1756912282550,74.37586908,212.66,212.65,0.03]
[1756912283043,69.67352732,212.66,212.65,0.03]
[1756912283251,64.6,212.66,212.65,0.03]
[1756912283544,74.37586908,212.66,212.65,0.03]
[1756912284250,36.49586908,212.66,212.65,0.03]
[1756912284536,35.77586908,212.66,212.65,0.03]
[1756912284742,26.0,212.71,212.65,0.34]
[1756912284944,4.70123642,212.71,212.65,0.34]
[1756912285133,5.07352732,212.69,212.65,0.34]
[1756912285320,38.6,212.68,212.65,0.34]
[1756912285524,5.07352732,212.67,212.65,0.03]
[1756912285726,38.6,212.66,212.65,0.03]
[1756912286746,43.67352732,212.66,212.65,0.03]
[1756912288038,48.37586908,212.66,212.65,0.03]
[1756912288530,49.04666908,212.66,212.65,0.03]
[1756912289133,43.65352732,212.66,212.65,0.03]
[1756912289335,38.58,212.66,212.65,0.03]
[1756912289537,43.65352732,212.66,212.65,0.03]
[1756912290128,5.07352732,212.67,212.65,0.03]
[1756912290340,38.56,212.66,212.65,0.34]
[1756912290551,38.56,212.66,212.65,0.03]
[1756912290729,43.63352732,212.66,212.65,0.03]
[1756912291430,43.63352732,212.66,212.65,0.34]
[1756912291431,38.56,212.66,212.65,0.34]
[1756912291950,11.7499442,212.77,212.65,0.34]
[1756912291951,38.56,212.68,212.65,0.34]
[1756912292133,43.63352732,212.68,212.65,0.03]
[1756912292328,43.63352732,212.68,212.65,10.40705464]
[1756912292534,5.07352732,212.67,212.65,0.03]
[1756912292746,43.63352732,212.66,212.65,0.03]
[1756912293634,38.56,212.66,212.65,0.03]
[1756912293843,43.63352732,212.66,212.65,0.03]
[1756912294040,5.07352732,212.67,212.65,0.03]
[1756912294358,4.70101541,212.72,212.65,0.34]
[1756912294549,5.07352732,212.68,212.65,0.03]
[1756912294730,38.56,212.67,212.65,0.03]
[1756912294936,43.63352732,212.67,212.65,0.03]
[1756912295435,38.54,212.66,212.65,0.03]
[1756912295633,44.33352732,212.66,212.65,0.03]
[1756912296262,5.07352732,212.66,212.65,0.03]
[1756912296448,44.33352732,212.66,212.65,0.03]
[1756912296653,49.03586908,212.66,212.65,0.03]
[1756912299356,43.96234176,212.66,212.65,0.03]
[1756912299670,10.49586908,212.66,212.65,0.03]
[1756912299841,49.03586908,212.66,212.65,0.03]
[1756912300436,38.52,212.66,212.65,0.03]
[1756912300638,43.59352732,212.66,212.65,0.03]
[1756912301542,26.72,212.69,212.65,0.03]
[1756912301739,38.52,212.68,212.65,0.03]
[1756912301942,5.07352732,212.67,212.65,0.03]
[1756912302262,38.52,212.66,212.65,0.03]
[1756912303266,44.28352732,212.66,212.65,0.03]
[1756912304057,39.21,212.66,212.65,0.03]
[1756912304369,43.59352732,212.66,212.65,0.03]
[1756912304665,44.28352732,212.66,212.65,0.03]
[1756912305246,48.98586908,212.66,212.65,0.03]
[1756912305770,10.46586908,212.66,212.65,0.03]
[1756912305950,48.96586908,212.66,212.65,0.03]
[1756912308762,10.46586908,212.66,212.65,0.03]
[1756912308947,48.96586908,212.66,212.65,0.03]
[1756912310250,54.0393964,212.66,212.65,0.03]
[1756912312468,48.96586908,212.66,212.65,0.03]
[1756912312679,5.39234176,212.66,212.65,0.03]
[1756912312849,48.25586908,212.66,212.65,0.03]
[1756912313243,9.77586908,212.66,212.65,0.03]
[1756912313438,48.94586908,212.66,212.65,0.03]
[1756912318480,62.54146309,212.66,212.65,0.03]
[1756912318648,5.39234176,212.66,212.65,0.03]
[1756912318853,64.40741043,212.66,212.65,0.03]
[1756912319283,25.94741043,212.66,212.65,0.03]
[1756912319570,64.40741043,212.66,212.65,0.03]
[1756912319744,10.46586908,212.66,212.65,0.03]
[1756912319941,9.77586908,212.66,212.65,0.03]
[1756912320175,38.44,212.66,212.65,0.03]
[1756912321154,43.51352732,212.66,212.65,0.03]
[1756912321558,48.21586908,212.66,212.65,0.03]
[1756912322749,4.70203568,212.68,212.65,0.03]
[1756912322951,38.44,212.67,212.65,0.34]
[1756912323181,38.44,212.67,212.65,0.03]
[1756912323751,43.14221777,212.67,212.65,0.03]
[1756912324488,30.70192171,212.68,212.65,0.03]
[1756912324652,4.70146354,212.7,212.65,5.10352732]
[1756912324856,38.42,212.69,212.66,0.31]
[1756912325054,4.76128415,212.71,212.67,5.38352732]
[1756912325279,38.42,212.7,212.65,5.41352732]
[1756912325467,43.49352732,212.7,212.65,5.41352732]
[1756912325669,5.39167849,212.69,212.65,0.03]
[1756912325988,38.42,212.68,212.65,0.34]
[1756912326188,38.42,212.68,212.65,5.41352732]
[1756912326357,38.42,212.68,212.65,0.34]
[1756912326556,4.70167849,212.69,212.65,0.34]
[1756912326787,38.42,212.68,212.65,0.34]
[1756912327359,38.42,212.68,212.65,0.03]
[1756912327576,39.11,212.68,212.65,0.03]
[1756912327858,43.1219052,212.68,212.65,5.10352732]
[1756912328355,43.1219052,212.68,212.65,0.03]
[1756912329057,38.42,212.67,212.65,0.34]
[1756912329388,38.42,212.67,212.65,5.41352732]
[1756912329587,38.42,212.67,212.66,5.07352732]
[1756912329878,30.70147602,212.7,212.66,5.38352732]
[1756912330062,38.4,212.69,212.66,5.38352732]
[1756912330457,0.06,212.68,212.66,5.07352732]
[1756912330694,38.4,212.67,212.66,5.07352732]
[1756912330993,38.4,212.67,212.65,5.10352732]
[1756912331680,38.46,212.68,212.66,3.55648201]
[1756912331880,38.46,212.68,212.67,3.55648201]
[1756912332982,0.06,212.68,212.67,3.55648201]
[1756912333170,0.06,212.68,212.65,0.03]
[1756912333371,0.06,212.68,212.67,3.24648201]
[1756912334264,0.06,212.68,212.66,0.31]
[1756912334569,0.06,212.68,212.67,3.55648201]
[1756912335563,0.06,212.68,212.67,8.25860266]
[1756912336062,0.06,212.68,212.67,5.01212065]
[1756912336274,0.06,212.68,212.67,8.25860266]
[1756912340686,0.06,212.68,212.67,3.55648201]
[1756912341262,0.06,212.68,212.67,8.25860266]
[1756912342470,0.06,212.68,212.67,4.70212065]
[1756912342683,0.06,212.68,212.65,0.03]
[1756912342891,0.06,212.68,212.67,3.24648201]
[1756912343884,0.06,212.68,212.67,7.94860266]
[1756912344486,0.06,212.68,212.67,8.25860266]
[1756912344868,0.06,212.68,212.67,7.94860266]
[1756912345276,0.06,212.68,212.67,21.85419667]
[1756912346182,0.06,212.68,212.67,7.94860266]
[1756912346768,0.06,212.68,212.67,9.83295079]
[1756912346972,0.06,212.68,212.67,7.94860266]
[1756912348081,0.74,212.68,212.67,7.94860266]
[1756912348277,0.06,212.68,212.67,3.24648201]
[1756912348488,0.74,212.68,212.67,3.24648201]
[1756912348996,0.74,212.68,212.66,0.03]
[1756912349293,0.74,212.68,212.67,3.24648201]
[1756912349491,0.06,212.68,212.67,3.24648201]
[1756912349681,0.74,212.68,212.67,3.24648201]
[1756912349879,0.74,212.68,212.66,0.03]
[1756912350292,0.74,212.68,212.67,3.24648201]
[1756912352200,0.74,212.68,212.66,0.03]
[1756912352378,0.74,212.68,212.67,3.24648201]
[1756912354178,0.06,212.68,212.67,3.24648201]
[1756912354377,0.74,212.68,212.67,3.24648201]
[1756912354593,0.06,212.68,212.67,3.24648201]
[1756912355106,0.06,212.68,212.67,7.94860266]
[1756912355494,0.06,212.68,212.66,4.73234176]
[1756912355805,0.06,212.68,212.67,3.24648201]
[1756912356373,0.06,212.68,212.67,3.55648201]
[1756912356792,0.06,212.68,212.67,0.31]
[1756912357102,0.06,212.68,212.67,3.55648201]
[1756912357584,0.06,212.68,212.67,5.01212065]
[1756912357784,0.06,212.68,212.67,4.70212065]
[1756912358007,0.06,212.68,212.67,7.94860266]
[1756912358876,0.06,212.68,212.67,3.24648201]
[1756912359081,0.74,212.68,212.66,0.03]
[1756912359276,0.06,212.71,212.7,33.87991715]
[1756912359488,0.06,212.71,212.7,37.43639916]
[1756912359802,0.06,212.73,212.72,39.59559401]
[1756912360002,0.06,212.73,212.72,81.95052101]
[1756912360296,0.06,212.73,212.72,82.26052101]
[1756912361795,0.06,212.73,212.72,86.96153642]
[1756912363608,1e-08,212.74,212.73,13.87991715]
[1756912363813,1e-08,212.74,212.73,22.13719359]
[1756912365010,1e-08,212.74,212.73,24.02074314]
[1756912366801,1e-08,212.74,212.73,61.64642]
[1756912367495,1e-08,212.74,212.73,23.42642]
[1756912367702,0.67000001,212.74,212.73,48.05082599]
[1756912368220,0.67000001,212.74,212.73,9.83082599]
[1756912369512,0.67000001,212.74,212.73,3.24648201]
[1756912370704,1e-08,212.74,212.73,3.24648201]
[1756912370913,0.67000001,212.74,212.73,3.24648201]
[1756912371315,0.67000001,212.74,212.73,7.94727644]
[1756912372403,1e-08,212.74,212.73,7.94727644]
[1756912372819,1e-08,212.74,212.73,22.70128892]
[1756912373008,1e-08,212.74,212.73,22.39128892]
[1756912373205,1e-08,212.74,212.73,22.10696578]
[1756912374306,1e-08,212.74,212.73,21.54287045]
[1756912374606,1e-08,212.74,212.73,59.74287045]
[1756912377427,1e-08,212.74,212.73,61.62677484]
[1756912378719,1e-08,212.74,212.73,23.42677484]
[1756912378924,1e-08,212.74,212.73,74.92270288]
[1756912379124,0.06,212.76,212.74,13.59559401]
[1756912379320,0.06,212.76,212.75,68.8763695]
[1756912379519,0.06,212.78,212.77,16.84207602]
[1756912379733,0.06,212.83,212.81,3.24648201]
[1756912379938,0.06,212.83,212.82,3.24648201]
[1756912380439,0.06,212.83,212.82,7.94528851]
[1756912383739,0.73,212.83,212.82,4.6988065]
[1756912384038,0.73,212.83,212.82,7.94528851]
[1756912385139,0.06,212.83,212.82,22.1047393]
[1756912385312,0.06,212.83,212.82,21.54088252]
[1756912385717,0.06,212.83,212.82,47.82520566]
[1756912386133,0.06,212.83,212.82,47.54088252]
[1756912386848,0.06,212.83,212.82,48.13520566]
[1756912387146,1e-08,212.83,212.82,22.13520566]
[1756912387630,1e-08,212.83,212.82,13.87991715]
[1756912387842,1e-08,212.83,212.82,21.82520566]
[1756912388142,1e-08,212.83,212.82,59.98520566]
[1756912388633,1e-08,212.83,212.82,56.73872365]
[1756912388818,0.06,212.86,212.85,39.59559401]
[1756912389133,0.06,212.86,212.85,86.52832069]
[1756912389319,0.06,212.86,212.85,86.83832069]
[1756912390621,0.06,212.86,212.85,88.72080651]
[1756912391416,1e-08,212.88,212.86,13.87991715]
[1756912391731,0.67,212.97,212.91,39.59559401]
[1756912391946,0.04136704,212.98,212.94,42.84207602]
[1756912392229,0.04136704,212.98,212.94,80.98207602]
[1756912392438,0.71136704,212.98,212.94,80.98207602]
[1756912392615,0.71136704,212.98,212.94,85.61286515]
[1756912393238,0.71136704,212.98,212.94,90.59334683]
[1756912393546,0.71136704,212.98,212.94,92.40285464]
[1756912394035,0.71136704,212.98,212.94,54.26285464]
[1756912394236,0.71136704,212.98,212.94,92.38285464]
[1756912395019,0.87,212.95,212.93,1.88186587]
[1756912395232,0.87,212.95,212.94,43.17598982]
[1756912395233,0.2,212.95,212.94,43.17598982]
[1756912395433,0.2,212.95,212.94,38.12]
[1756912395831,0.87,212.95,212.94,38.12]
[1756912396445,0.87,212.95,212.94,43.17598982]
[1756912397341,0.87,212.95,212.91,4.66154036]
[1756912397561,0.67,212.94,212.92,38.1]
[1756912397846,0.67,212.93,212.92,38.1]
[1756912398149,0.67,212.93,212.92,43.15598982]
[1756912398328,0.67,212.93,212.89,15.47790267]
[1756912398638,0.67,212.92,212.9,43.15598982]
[1756912398835,0.67,212.91,212.9,38.1]
[1756912399017,0.67,212.91,212.9,43.15598982]
[1756912399526,0.87,212.95,212.91,13.59559401]
[1756912399728,0.87,212.95,212.94,5.05598982]
[1756912400035,0.87,212.95,212.94,43.15598982]
[1756912400229,0.87,212.95,212.94,38.1]
[1756912400428,0.2,212.95,212.94,43.15598982]
[1756912400642,0.2,212.95,212.94,56.75158383]
[1756912400948,0.2,212.95,212.94,52.54345617]
[1756912401152,0.2,212.95,212.94,57.59944599]
[1756912401321,0.2,212.95,212.94,62.29560453]
[1756912401737,0.2,212.95,212.94,57.23961471]
[1756912401943,0.2,212.95,212.94,62.29560453]
[1756912402640,0.2,212.95,212.94,62.60560453]
[1756912402850,0.2,212.95,212.94,20.73698039]
[1756912403151,0.87,212.95,212.94,61.42774237]
[1756912403319,0.87,212.95,212.92,5.05598982]
[1756912403527,5.05598982,212.93,212.91,1.88204296]
[1756912403741,0.67,212.92,212.87,43.13598982]
[1756912403945,0.67,212.91,212.83,9.75453176]
[1756912404243,5.72598982,212.9,212.83,9.75453176]
[1756912404442,0.67,212.89,212.86,5.05598982]
[1756912404646,5.05598982,212.94,212.88,5.05598982]
[1756912405019,5.05598982,212.93,212.86,38.08]
[1756912405234,0.67,212.92,212.87,5.05598982]
[1756912405433,0.67,212.91,212.87,5.05598982]
[1756912405641,0.67,212.9,212.86,43.13598982]
[1756912405837,0.67,212.89,212.86,43.13598982]
[1756912406026,0.67,212.88,212.86,38.08]
[1756912406227,0.67,212.87,212.86,38.08]
[1756912407243,0.67,212.87,212.84,5.05598982]
[1756912407537,0.67,212.86,212.84,38.08]
[1756912407736,0.67,212.85,212.84,38.08]
[1756912408135,0.67,212.88,212.84,43.13598982]
[1756912408335,0.67,212.87,212.84,43.13598982]
[1756912408534,0.67,212.86,212.84,38.08]
[1756912408735,0.67,212.86,212.84,43.13598982]
[1756912409135,4.69729663,212.89,212.84,43.13598982]
[1756912409338,0.67,212.85,212.8,18.29484114]
[1756912409544,9.75328645,212.89,212.8,18.29484114]
[1756912409545,0.67,212.84,212.82,13.59559401]
[1756912409748,0.67,212.84,212.82,5.05598982]
[1756912409950,0.67,212.84,212.83,5.05598982]
[1756912410527,0.67,212.86,212.83,5.05598982]
[1756912410727,0.67,212.89,212.85,5.05598982]
[1756912410954,0.67,212.88,212.85,5.05598982]
[1756912411254,0.67,212.88,212.86,5.05598982]
[1756912411556,5.05598982,212.91,212.82,18.39319578]
[1756912411557,0.67,212.87,212.82,18.39319578]
[1756912411755,0.67,212.86,212.81,13.59559401]
[1756912411928,0.67,212.86,212.8,64.06]
[1756912411929,0.67,212.85,212.8,64.06]
[1756912412134,0.67,212.84,212.8,64.06]
[1756912412348,0.67,212.83,212.8,69.11598982]
[1756912412554,0.67,212.82,212.8,64.06]
[1756912412751,0.67,212.81,212.8,64.06]
[1756912413048,0.67,212.81,212.78,0.03]
[1756912413258,0.67,212.8,212.78,0.03]
[1756912413629,0.67,212.79,212.78,0.03]
[1756912418236,0.67,212.79,212.76,22.70761994]
[1756912418431,0.67,212.79,212.77,5.05598982]
[1756912419148,0.67,212.79,212.76,18.00749783]
[1756912419341,0.67,212.78,212.76,18.00749783]
[1756912419848,0.67,212.78,212.76,12.95150801]
[1756912420771,0.67,212.77,212.75,47.84628843]
[1756912420947,5.72598982,212.76,212.75,0.03]
[1756912421256,5.72598982,212.76,212.65,0.03]
[1756912421431,5.05598982,212.69,212.65,0.03]
[1756912421834,5.77598982,212.68,212.65,0.03]
[1756912422033,5.05598982,212.67,212.65,0.03]
[1756912422551,5.77598982,212.67,212.65,0.03]
[1756912422742,10.47811047,212.67,212.65,0.03]
[1756912423742,5.77598982,212.67,212.65,0.03]
[1756912424438,10.47811047,212.67,212.65,0.03]
[1756912426830,5.77598982,212.67,212.65,0.03]
[1756912428350,10.47811047,212.67,212.65,0.03]
[1756912431044,5.77598982,212.67,212.65,0.03]
[1756912432337,10.47811047,212.67,212.65,0.03]
[1756912433240,38.04,212.67,212.65,0.03]
[1756912433449,43.11598982,212.67,212.65,0.03]
[1756912433851,5.05598982,212.67,212.65,0.03]
[1756912434149,64.06,212.68,212.65,0.03]
[1756912434352,5.05598982,212.68,212.65,0.03]
[1756912434557,38.76,212.7,212.65,0.03]
[1756912434735,0.72,212.73,212.66,5.45598982]
[1756912434930,0.72,212.73,212.67,4.70212065]
[1756912434931,5.05598982,212.72,212.67,4.70212065]
[1756912435134,5.77598982,212.71,212.66,0.03]
[1756912435556,0.72,212.71,212.66,0.03]
[1756912435760,5.05598982,212.71,212.66,0.4]
[1756912435953,5.05598982,212.72,212.66,5.45598982]
[1756912436149,5.05598982,212.71,212.66,0.03]
[1756912436347,5.77598982,212.7,212.66,0.03]
[1756912436741,0.72,212.69,212.66,0.03]
[1756912436936,5.77598982,212.69,212.66,0.03]
[1756912437853,0.72,212.68,212.66,0.03]
[1756912438158,5.05598982,212.67,212.66,0.03]
[1756912438348,5.48087965,212.73,212.66,5.45598982]
[1756912438548,5.05598982,212.7,212.66,0.03]
[1756912438951,5.05598982,212.68,212.66,0.03]
[1756912439143,5.77598982,212.67,212.66,0.03]
[1756912439654,0.72,212.67,212.66,0.03]
[1756912439857,5.77598982,212.69,212.66,0.03]
[1756912440053,5.77598982,212.67,212.66,0.03]
[1756912440452,0.72,212.67,212.66,0.03]
[1756912440777,5.77598982,212.67,212.66,0.03]
[1756912441556,10.47811047,212.67,212.66,0.03]
[1756912443452,48.51811047,212.67,212.66,0.03]
[1756912444466,5.42212065,212.67,212.66,0.03]
[1756912444650,43.81598982,212.67,212.66,0.03]
[1756912444978,48.51811047,212.67,212.66,0.03]
[1756912447577,43.81598982,212.67,212.66,0.03]
[1756912448177,38.76,212.67,212.66,0.03]
[1756912448380,0.72,212.71,212.66,0.03]
[1756912448688,5.05598982,212.67,212.66,0.03]
[1756912449052,5.77598982,212.67,212.66,0.03]
[1756912450064,5.05598982,212.67,212.66,0.03]
[1756912450256,0.72,212.69,212.66,0.03]
[1756912450458,43.07598982,212.68,212.66,0.03]
[1756912450784,5.05598982,212.67,212.66,0.03]
[1756912451081,5.77598982,212.67,212.66,0.03]
[1756912451564,0.72,212.67,212.66,0.03]
[1756912451878,5.77598982,212.67,212.66,0.03]
[1756912452293,10.47811047,212.67,212.66,0.03]
[1756912454191,48.49811047,212.67,212.66,0.03]
[1756912454396,11.75349587,212.71,212.66,0.03]
[1756912454581,26.0,212.67,212.66,0.03]
[1756912455078,64.02,212.67,212.66,0.03]
[1756912455280,38.02,212.67,212.66,0.03]
[1756912455475,0.06,212.73,212.66,0.03]
[1756912455476,7.94806527,212.71,212.66,0.03]
[1756912455691,0.68,212.71,212.67,3.24679738]
[1756912455882,38.02,212.7,212.66,3.27679738]
[1756912456192,3.92679738,212.69,212.66,0.03]
[1756912456385,3.24679738,212.68,212.66,0.03]
[1756912456697,3.24679738,212.67,212.66,0.03]
[1756912456871,67.94679738,212.67,212.66,0.03]
[1756912458391,72.64891803,212.67,212.66,0.03]
[1756912458894,86.24451204,212.67,212.66,0.03]
[1756912460090,48.22451204,212.67,212.66,0.03]
[1756912460285,86.24451204,212.67,212.66,0.03]
[1756912460790,26.0,212.62,212.61,0.1]
[1756912460996,67.26679738,212.62,212.61,0.1]
[1756912461292,67.94679738,212.62,212.61,0.1]
[1756912461993,72.65002379,212.62,212.61,0.1]
[1756912462495,75.94567867,212.62,212.61,0.1]
[1756912464110,31.38322641,212.62,212.61,0.1]
[1756912464394,45.95002379,212.62,212.61,0.1]
[1756912464894,46.63002379,212.62,212.61,0.1]
[1756912465491,45.95002379,212.62,212.61,0.1]
[1756912466074,46.63002379,212.62,212.61,0.1]
[1756912466291,8.63002379,212.62,212.61,0.1]
[1756912466499,46.63002379,212.62,212.61,0.1]
[1756912466899,45.95002379,212.62,212.61,0.1]
[1756912467082,46.63002379,212.62,212.61,0.1]
[1756912468880,45.95002379,212.62,212.61,0.1]
[1756912469574,46.63002379,212.62,212.61,0.1]
[1756912470097,45.95002379,212.62,212.61,0.1]
[1756912470895,42.70322641,212.62,212.61,0.1]
[1756912471097,71.95002379,212.62,212.61,0.1]
[1756912472702,72.63002379,212.62,212.61,0.1]
[1756912473285,68.70322641,212.62,212.61,0.1]
[1756912473489,71.95002379,212.62,212.61,0.1]
[1756912473992,72.63002379,212.62,212.61,0.1]
[1756912474701,71.95002379,212.62,212.61,0.1]
[1756912474920,68.70322641,212.62,212.61,0.1]
[1756912475291,71.95002379,212.62,212.61,0.1]
[1756912476808,72.63002379,212.62,212.61,0.1]
[1756912478907,69.38322641,212.62,212.61,0.1]
[1756912479223,72.63002379,212.62,212.61,0.1]
[1756912480501,26.0,212.62,212.61,0.1]
[1756912480710,3.24679738,212.63,212.61,0.1]
[1756912480900,37.98,212.62,212.61,0.1]
[1756912481815,3.24679738,212.63,212.61,0.1]
[1756912481996,37.98,212.62,212.61,0.1]
[1756912482401,0.72,212.62,212.61,0.1]
[1756912482616,41.94679738,212.62,212.61,0.1]
[1756912482823,46.65002379,212.62,212.61,0.1]
[1756912483210,60.2456178,212.62,212.61,0.1]
[1756912483516,60.2456178,212.62,212.59,0.1]
[1756912483826,3.24679738,212.61,212.59,0.1]
[1756912484312,3.96679738,212.61,212.59,0.1]
[1756912485014,46.650245,212.61,212.59,0.1]
[1756912491514,26.0,212.59,212.58,0.03]
[1756912491725,80.80239139,212.59,212.58,0.03]
[1756912491912,81.52239139,212.59,212.58,0.03]
[1756912492433,13.59559401,212.58,212.56,1e-08]
[1756912492615,54.80239139,212.57,212.56,1e-08]
[1756912492822,41.92679738,212.57,212.56,1e-08]
[1756912493345,8.67113007,212.57,212.56,1e-08]
[1756912493533,46.63113007,212.57,212.56,1e-08]
[1756912500518,43.38433269,212.57,212.56,1e-08]
[1756912500738,45.91113007,212.57,212.56,1e-08]
[1756912500938,46.63113007,212.57,212.56,1e-08]
[1756912501236,45.91113007,212.57,212.56,1e-08]
[1756912501935,46.63113007,212.57,212.56,1e-08]
[1756912504424,45.91113007,212.57,212.56,1e-08]
[1756912504941,45.89113007,212.57,212.56,1e-08]
[1756912505240,71.89113007,212.57,212.56,1e-08]
[1756912506233,41.18679738,212.57,212.56,1e-08]
[1756912506946,45.89113007,212.57,212.56,1e-08]
[1756912507832,42.64433269,212.57,212.56,1e-08]
[1756912508033,45.89113007,212.57,212.56,1e-08]
[1756912508372,42.64433269,212.57,212.56,1e-08]
[1756912508649,45.89113007,212.57,212.56,1e-08]
[1756912508845,7.95113007,212.57,212.56,1e-08]
[1756912509038,45.87113007,212.57,212.56,1e-08]
[1756912509936,46.59113007,212.57,212.56,1e-08]
[1756912510137,45.87113007,212.57,212.56,1e-08]
[1756912510849,164.10414355,212.58,212.56,1e-08]
[1756912511040,41.16679738,212.57,212.56,1e-08]
[1756912512357,45.87113007,212.57,212.56,1e-08]
[1756912513428,0.06,212.61,212.56,0.37000001]
[1756912513633,0.06,212.61,212.57,0.37]
[1756912513834,0.06,212.61,212.59,3.24679738]
[1756912514048,0.06,212.61,212.6,0.37]
[1756912515151,0.06,212.61,212.59,0.37]
[1756912515361,0.06,212.61,212.58,0.37]
[1756912515555,0.06,212.61,212.59,0.37]
[1756912516058,0.06,212.61,212.6,16.84239139]
[1756912516242,0.06,212.61,212.6,17.21239139]
[1756912516447,0.06,212.61,212.6,21.91606025]
[1756912517460,0.06,212.61,212.6,23.74363576]
[1756912518949,0.06,212.61,212.6,24.0279589]
[1756912520934,0.06,212.61,212.6,18.95358601]
[1756912521171,0.06,212.61,212.6,24.0279589]
[1756912523454,0.06,212.61,212.6,25.9128398]
[1756912523664,0.06,212.61,212.6,20.83846691]
[1756912523844,0.06,212.61,212.6,25.9128398]